[Event "Titled Tuesday Blitz March 08 Late 2022"]
[White "Kozina, Anastasia"]
[Black "Martins, Carlos"]
[WhiteFideId "24174017"]
[BlackFideId "2101688"]
[WhiteElo "1993"]
[BlackElo "2183"]
[Result "0-1"]
[Round "07"]
[TimeControl "180+1"]
[Date "2022.03.09"]
[WhiteClock "0:00:14"]
[BlackClock "0:00:15"]

1. e4 {[%clk 0:03:00]}  c5 {[%clk 0:02:58]} 2. Nc3 {[%clk 0:02:59]}  a6 {[%clk 0:02:57]} 3. g3 {[%clk 0:02:58]}  b5 {[%clk 0:02:57]} 4. Bg2 {[%clk 0:02:58]}  Bb7 {[%clk 0:02:58]} 5. d3 {[%clk 0:02:55]}  e6 {[%clk 0:02:58]} 6. f4 {[%clk 0:02:55]}  d5 {[%clk 0:02:58]} 7. exd5 {[%clk 0:02:41]}  exd5 {[%clk 0:02:53]} 8. Nf3 {[%clk 0:02:41]}  Nf6 {[%clk 0:02:51]} 9. O-O {[%clk 0:02:41]}  Be7 {[%clk 0:02:50]} 10. Kh1 {[%clk 0:02:39]}  d4 {[%clk 0:02:48]} 11. Ne2 {[%clk 0:02:37]}  O-O {[%clk 0:02:47]} 12. c3 {[%clk 0:02:30]}  dxc3 {[%clk 0:02:43]} 13. bxc3 {[%clk 0:02:31]}  Nbd7 {[%clk 0:02:39]} 14. d4 {[%clk 0:02:28]}  Re8 {[%clk 0:02:33]} 15. Bb2 {[%clk 0:02:20]}  Nb6 {[%clk 0:02:29]} 16. dxc5 {[%clk 0:02:10]}  Bxc5 {[%clk 0:02:26]} 17. Ned4 {[%clk 0:02:06]}  Nc4 {[%clk 0:02:22]} 18. Bc1 {[%clk 0:01:59]}  Nd5 {[%clk 0:02:18]} 19. Qd3 {[%clk 0:01:34]}  Nde3 {[%clk 0:02:11]} 20. Bxe3 {[%clk 0:01:30]}  Nxe3 {[%clk 0:02:09]} 21. Rf2 {[%clk 0:01:29]}  Nxg2 {[%clk 0:02:08]} 22. Kxg2 {[%clk 0:01:27]}  Qd5 {[%clk 0:02:05]} 23. Kg1 {[%clk 0:01:25]}  Rad8 {[%clk 0:01:54]} 24. Rd1 {[%clk 0:01:22]}  h6 {[%clk 0:01:48]} 25. Qc2 {[%clk 0:01:12]}  Qc4 {[%clk 0:01:36]} 26. Ne5 {[%clk 0:01:01]}  Qd5 {[%clk 0:01:26]} 27. Nef3 {[%clk 0:00:59]}  Bxd4 {[%clk 0:00:58]} 28. cxd4 {[%clk 0:00:53]}  Re3 {[%clk 0:00:57]} 29. Rdf1 {[%clk 0:00:46]}  Rc8 {[%clk 0:00:46]} 30. Qd2 {[%clk 0:00:45]}  Rcc3 {[%clk 0:00:45]} 31. Kg2 {[%clk 0:00:36]}  Qe4 {[%clk 0:00:39]} 32. Qd1 {[%clk 0:00:28]}  Bd5 {[%clk 0:00:29]} 33. a4 {[%clk 0:00:26]}  bxa4 {[%clk 0:00:26]} 34. f5 {[%clk 0:00:19]}  Qxf5 {[%clk 0:00:22]} 35. h3 {[%clk 0:00:17]}  a3 {[%clk 0:00:19]} 36. g4 {[%clk 0:00:17]}  Qf4 {[%clk 0:00:18]} 37. Kg1 {[%clk 0:00:15]}  Rxf3 {[%clk 0:00:16]} 38. Rxf3 {[%clk 0:00:15]}  Rxf3 {[%clk 0:00:16]} 39. Rxf3 {[%clk 0:00:14]}  Qxf3 {[%clk 0:00:16]} 40. Qa4 {[%clk 0:00:14]}  Qg2# {[%clk 0:00:15]} 0-1


[Site "https://www.chess.com"]

[Event "Titled Tuesday Blitz March 08 Late 2022"]
[White "Li, Ben"]
[Black "Xiong, Jeffery"]
[WhiteFideId "2089980"]
[BlackFideId "2047640"]
[WhiteElo "2267"]
[BlackElo "2727"]
[Result "0-1"]
[Round "07"]
[TimeControl "180+1"]
[Date "2022.03.08"]
[WhiteClock "0:00:05"]
[BlackClock "0:00:06"]

1. d4 {[%clk 0:03:00]}  d5 {[%clk 0:02:57]} 2. Nf3 {[%clk 0:03:00]}  Nf6 {[%clk 0:02:57]} 3. c4 {[%clk 0:03:00]}  e6 {[%clk 0:02:57]} 4. Nc3 {[%clk 0:03:00]}  c6 {[%clk 0:02:58]} 5. e3 {[%clk 0:03:01]}  Nbd7 {[%clk 0:02:57]} 6. Bd3 {[%clk 0:03:01]}  dxc4 {[%clk 0:02:57]} 7. Bxc4 {[%clk 0:03:02]}  b5 {[%clk 0:02:57]} 8. Bd3 {[%clk 0:03:02]}  Bb7 {[%clk 0:02:57]} 9. O-O {[%clk 0:03:03]}  b4 {[%clk 0:02:55]} 10. Ne4 {[%clk 0:03:02]}  c5 {[%clk 0:02:55]} 11. Nxf6+ {[%clk 0:02:38]}  gxf6 {[%clk 0:02:56]} 12. Qe2 {[%clk 0:02:29]}  a6 {[%clk 0:02:45]} 13. Rd1 {[%clk 0:02:27]}  Qb6 {[%clk 0:02:46]} 14. b3 {[%clk 0:02:26]}  cxd4 {[%clk 0:02:43]} 15. exd4 {[%clk 0:02:24]}  Bd6 {[%clk 0:02:34]} 16. Be3 {[%clk 0:02:17]}  Bd5 {[%clk 0:02:34]} 17. Nd2 {[%clk 0:02:11]}  Qb7 {[%clk 0:02:27]} 18. g3 {[%clk 0:02:11]}  h5 {[%clk 0:02:25]} 19. Bc4 {[%clk 0:02:05]}  h4 {[%clk 0:02:23]} 20. Bxd5 {[%clk 0:02:03]}  Qxd5 {[%clk 0:02:24]} 21. Nf1 {[%clk 0:01:55]}  hxg3 {[%clk 0:02:12]} 22. fxg3 {[%clk 0:01:56]}  Nb6 {[%clk 0:02:12]} 23. Rac1 {[%clk 0:01:54]}  Kd7 {[%clk 0:02:11]} 24. Qf2 {[%clk 0:01:28]}  Be7 {[%clk 0:01:55]} 25. Bf4 {[%clk 0:01:26]}  Rhc8 {[%clk 0:01:45]} 26. Ne3 {[%clk 0:01:18]}  Qe4 {[%clk 0:01:46]} 27. Qg2 {[%clk 0:01:02]}  Qxg2+ {[%clk 0:01:43]} 28. Kxg2 {[%clk 0:01:03]}  a5 {[%clk 0:01:43]} 29. Kf3 {[%clk 0:01:01]}  a4 {[%clk 0:01:42]} 30. h4 {[%clk 0:00:58]}  axb3 {[%clk 0:01:42]} 31. axb3 {[%clk 0:00:59]}  Ra3 {[%clk 0:01:03]} 32. Rxc8 {[%clk 0:00:58]}  Nxc8 {[%clk 0:01:04]} 33. Rb1 {[%clk 0:00:55]}  Na7 {[%clk 0:01:04]} 34. Nc4 {[%clk 0:00:53]}  Ra2 {[%clk 0:01:04]} 35. h5 {[%clk 0:00:47]}  Nb5 {[%clk 0:01:02]} 36. Rd1 {[%clk 0:00:38]}  Ke8 {[%clk 0:00:47]} 37. h6 {[%clk 0:00:24]}  Kf8 {[%clk 0:00:48]} 38. Rh1 {[%clk 0:00:17]}  Kg8 {[%clk 0:00:48]} 39. h7+ {[%clk 0:00:18]}  Kh8 {[%clk 0:00:48]} 40. Bh6 {[%clk 0:00:18]}  Ra8 {[%clk 0:00:46]} 41. Be3 {[%clk 0:00:17]}  Rd8 {[%clk 0:00:39]} 42. Ke4 {[%clk 0:00:14]}  f5+ {[%clk 0:00:36]} 43. Kf3 {[%clk 0:00:13]}  f6 {[%clk 0:00:21]} 44. Re1 {[%clk 0:00:09]}  Kxh7 {[%clk 0:00:19]} 45. Bf2 {[%clk 0:00:09]}  Nc7 {[%clk 0:00:19]} 46. Ra1 {[%clk 0:00:07]}  Kg6 {[%clk 0:00:16]} 47. Ra7 {[%clk 0:00:07]}  Nd5 {[%clk 0:00:17]} 48. Be3 {[%clk 0:00:04]}  Rh8 {[%clk 0:00:11]} 49. Bd2 {[%clk 0:00:04]}  Rh2 {[%clk 0:00:10]} 50. Ne3 {[%clk 0:00:03]}  Rxd2 {[%clk 0:00:08]} 51. Nxd5 {[%clk 0:00:03]}  exd5 {[%clk 0:00:09]} 52. Rxe7 {[%clk 0:00:03]}  Rxd4 {[%clk 0:00:08]} 53. Rd7 {[%clk 0:00:02]}  Rd3+ {[%clk 0:00:08]} 54. Kf4 {[%clk 0:00:02]}  Rd4+ {[%clk 0:00:04]} 55. Kf3 {[%clk 0:00:02]}  Rd3+ {[%clk 0:00:03]} 56. Kf4 {[%clk 0:00:03]}  Rxb3 {[%clk 0:00:03]} 57. Rxd5 {[%clk 0:00:03]}  Rb1 {[%clk 0:00:04]} 58. Rb5 {[%clk 0:00:04]}  b3 {[%clk 0:00:04]} 59. Kf3 {[%clk 0:00:04]}  Kg5 {[%clk 0:00:04]} 60. Rb4 {[%clk 0:00:03]}  Kg6 {[%clk 0:00:02]} 61. Rb7 {[%clk 0:00:03]}  Kh6 {[%clk 0:00:02]} 62. Rb6 {[%clk 0:00:03]}  Kg5 {[%clk 0:00:03]} 63. Rb4 {[%clk 0:00:03]}  Kg6 {[%clk 0:00:04]} 64. Rb6 {[%clk 0:00:03]}  Rb2 {[%clk 0:00:05]} 65. Rb8 {[%clk 0:00:03]}  Kf7 {[%clk 0:00:05]} 66. Rb7+ {[%clk 0:00:03]}  Ke6 {[%clk 0:00:06]} 67. Rb8 {[%clk 0:00:03]}  Rb1 {[%clk 0:00:06]} 68. Kg2 {[%clk 0:00:03]}  Kd5 {[%clk 0:00:06]} 69. Rd8+ {[%clk 0:00:03]}  Kc4 {[%clk 0:00:06]} 70. Rc8+ {[%clk 0:00:04]}  Kd3 {[%clk 0:00:06]} 71. Rd8+ {[%clk 0:00:03]}  Kc2 {[%clk 0:00:07]} 72. Rf8 {[%clk 0:00:04]}  Rd1 {[%clk 0:00:05]} 73. Rxf6 {[%clk 0:00:04]}  Rd5 {[%clk 0:00:05]} 74. Rc6+ {[%clk 0:00:04]}  Kd3 {[%clk 0:00:05]} 75. Rb6 {[%clk 0:00:04]}  Kc3 {[%clk 0:00:04]} 76. Kf3 {[%clk 0:00:05]}  b2 {[%clk 0:00:04]} 77. Kf4 {[%clk 0:00:05]}  Rd4+ {[%clk 0:00:05]} 78. Kxf5 {[%clk 0:00:05]}  Rb4 {[%clk 0:00:05]} 79. Rc6+ {[%clk 0:00:05]}  Kb3 {[%clk 0:00:06]} 0-1


[Site "https://www.chess.com"]

[Event "Titled Tuesday Blitz March 08 Late 2022"]
[White "Maghsoodloo, Parham"]
[Black "Salimova, Nurgyul"]
[WhiteFideId "12539929"]
[BlackFideId "2915138"]
[WhiteElo "2630"]
[BlackElo "2185"]
[Result "1-0"]
[Round "07"]
[TimeControl "180+1"]
[Date "2022.03.08"]
[WhiteClock "0:00:45"]
[BlackClock "0:00:02"]

1. e4 {[%clk 0:02:55]}  c6 {[%clk 0:02:59]} 2. Nc3 {[%clk 0:02:53]}  d5 {[%clk 0:03:00]} 3. Nf3 {[%clk 0:02:52]}  dxe4 {[%clk 0:02:59]} 4. Nxe4 {[%clk 0:02:51]}  Nf6 {[%clk 0:02:59]} 5. Nxf6+ {[%clk 0:02:50]}  exf6 {[%clk 0:02:59]} 6. Bc4 {[%clk 0:02:50]}  Bd6 {[%clk 0:02:43]} 7. Qe2+ {[%clk 0:02:50]}  Qe7 {[%clk 0:02:43]} 8. Qxe7+ {[%clk 0:02:49]}  Kxe7 {[%clk 0:02:44]} 9. O-O {[%clk 0:02:48]}  Rd8 {[%clk 0:02:44]} 10. Re1+ {[%clk 0:02:48]}  Kf8 {[%clk 0:02:44]} 11. h3 {[%clk 0:02:47]}  Nd7 {[%clk 0:02:34]} 12. d4 {[%clk 0:02:46]}  Nb6 {[%clk 0:02:34]} 13. Bb3 {[%clk 0:02:43]}  a5 {[%clk 0:02:32]} 14. a4 {[%clk 0:02:43]}  Re8 {[%clk 0:02:05]} 15. Bd2 {[%clk 0:02:25]}  Be6 {[%clk 0:02:03]} 16. Bxe6 {[%clk 0:02:24]}  fxe6 {[%clk 0:01:52]} 17. b3 {[%clk 0:02:23]}  Kf7 {[%clk 0:01:49]} 18. c4 {[%clk 0:02:23]}  Bc7 {[%clk 0:01:46]} 19. Bc3 {[%clk 0:02:22]}  Nc8 {[%clk 0:01:33]} 20. Re2 {[%clk 0:02:21]}  Nd6 {[%clk 0:01:04]} 21. Rae1 {[%clk 0:02:20]}  b5 {[%clk 0:00:52]} 22. c5 {[%clk 0:02:11]}  Nf5 {[%clk 0:00:22]} 23. g4 {[%clk 0:02:09]}  Nh6 {[%clk 0:00:19]} 24. Kg2 {[%clk 0:01:52]}  b4 {[%clk 0:00:19]} 25. Bd2 {[%clk 0:01:47]}  Ng8 {[%clk 0:00:19]} 26. h4 {[%clk 0:01:48]}  Rad8 {[%clk 0:00:19]} 27. h5 {[%clk 0:01:48]}  Rd5 {[%clk 0:00:16]} 28. Kh3 {[%clk 0:01:46]}  g6 {[%clk 0:00:15]} 29. hxg6+ {[%clk 0:01:44]}  hxg6 {[%clk 0:00:13]} 30. Kg2 {[%clk 0:01:45]}  g5 {[%clk 0:00:13]} 31. Rh1 {[%clk 0:01:41]}  Kg6 {[%clk 0:00:11]} 32. Rh5 {[%clk 0:01:40]}  Nh6 {[%clk 0:00:10]} 33. Kh3 {[%clk 0:01:34]}  Nxg4 {[%clk 0:00:08]} 34. Rxg5+ {[%clk 0:01:25]}  fxg5 {[%clk 0:00:08]} 35. Kxg4 {[%clk 0:01:26]}  Rf5 {[%clk 0:00:07]} 36. Nxg5 {[%clk 0:01:20]}  e5 {[%clk 0:00:06]} 37. Nf3 {[%clk 0:01:06]}  Rff8 {[%clk 0:00:04]} 38. dxe5 {[%clk 0:01:03]}  Re6 {[%clk 0:00:03]} 39. Bf4 {[%clk 0:00:54]}  Rfe8 {[%clk 0:00:02]} 40. Nd4 {[%clk 0:00:53]}  R6e7 {[%clk 0:00:02]} 41. Nxc6 {[%clk 0:00:52]}  Rg7 {[%clk 0:00:02]} 42. Kf3 {[%clk 0:00:50]}  Kf7 {[%clk 0:00:02]} 43. Nd4 {[%clk 0:00:45]} 1-0


[Site "https://www.chess.com"]

[Event "Titled Tuesday Blitz March 08 Late 2022"]
[White "Manukyan, Sargis A."]
[Black "Cardoso Cardoso, Jose Gabriel"]
[WhiteFideId "13303970"]
[BlackFideId "4430492"]
[WhiteElo "2187"]
[BlackElo "2451"]
[Result "0-1"]
[Round "07"]
[TimeControl "180+1"]
[Date "2022.03.08"]
[WhiteClock "0:00:05"]
[BlackClock "0:00:04"]

1. d4 {[%clk 0:03:00]}  Nf6 {[%clk 0:02:58]} 2. c4 {[%clk 0:03:01]}  g6 {[%clk 0:02:57]} 3. Nc3 {[%clk 0:03:00]}  Bg7 {[%clk 0:02:57]} 4. Nf3 {[%clk 0:03:01]}  d6 {[%clk 0:02:57]} 5. h3 {[%clk 0:03:01]}  O-O {[%clk 0:02:57]} 6. Bf4 {[%clk 0:03:02]}  Nc6 {[%clk 0:02:46]} 7. e3 {[%clk 0:03:01]}  Nh5 {[%clk 0:02:46]} 8. Bh2 {[%clk 0:03:01]}  e5 {[%clk 0:02:47]} 9. dxe5 {[%clk 0:02:57]}  Nxe5 {[%clk 0:02:40]} 10. Nxe5 {[%clk 0:02:57]}  dxe5 {[%clk 0:02:40]} 11. Qxd8 {[%clk 0:02:53]}  Rxd8 {[%clk 0:02:39]} 12. g4 {[%clk 0:02:53]}  Nf6 {[%clk 0:02:30]} 13. Bxe5 {[%clk 0:02:53]}  Be6 {[%clk 0:02:12]} 14. Bxc7 {[%clk 0:02:53]}  Rdc8 {[%clk 0:02:08]} 15. Be5 {[%clk 0:02:52]}  Bxc4 {[%clk 0:02:06]} 16. Bxc4 {[%clk 0:02:52]}  Rxc4 {[%clk 0:02:06]} 17. Ke2 {[%clk 0:02:52]}  Re8 {[%clk 0:02:04]} 18. f4 {[%clk 0:02:40]}  Ne4 {[%clk 0:01:41]} 19. Bxg7 {[%clk 0:02:17]}  Kxg7 {[%clk 0:01:39]} 20. Kd3 {[%clk 0:02:15]}  Rb4 {[%clk 0:01:11]} 21. Nxe4 {[%clk 0:02:13]}  Rbxe4 {[%clk 0:01:12]} 22. Rhe1 {[%clk 0:02:11]}  Rb4 {[%clk 0:01:06]} 23. b3 {[%clk 0:02:09]}  Rd8+ {[%clk 0:01:01]} 24. Ke2 {[%clk 0:02:09]}  Kf6 {[%clk 0:00:56]} 25. Red1 {[%clk 0:02:08]}  Ke7 {[%clk 0:00:53]} 26. Rxd8 {[%clk 0:02:07]}  Kxd8 {[%clk 0:00:52]} 27. Rd1+ {[%clk 0:02:07]}  Ke7 {[%clk 0:00:50]} 28. Rd5 {[%clk 0:01:56]}  Rb6 {[%clk 0:00:46]} 29. Kd3 {[%clk 0:01:52]}  Rc6 {[%clk 0:00:43]} 30. Kd2 {[%clk 0:01:45]}  a6 {[%clk 0:00:33]} 31. h4 {[%clk 0:01:44]}  Rc7 {[%clk 0:00:31]} 32. h5 {[%clk 0:01:40]}  Rc6 {[%clk 0:00:23]} 33. h6 {[%clk 0:01:34]}  Rc7 {[%clk 0:00:23]} 34. g5 {[%clk 0:01:35]}  Rc6 {[%clk 0:00:23]} 35. a4 {[%clk 0:01:32]}  Rb6 {[%clk 0:00:23]} 36. Kc3 {[%clk 0:01:32]}  Rc6+ {[%clk 0:00:24]} 37. Kd3 {[%clk 0:01:31]}  Rb6 {[%clk 0:00:23]} 38. Kc4 {[%clk 0:01:31]}  Rc6+ {[%clk 0:00:24]} 39. Rc5 {[%clk 0:01:31]}  Re6 {[%clk 0:00:24]} 40. Re5 {[%clk 0:00:52]}  Rxe5 {[%clk 0:00:21]} 41. fxe5 {[%clk 0:00:53]}  Ke6 {[%clk 0:00:15]} 42. Kc5 {[%clk 0:00:53]}  Kxe5 {[%clk 0:00:15]} 43. Kb6 {[%clk 0:00:53]}  f6 {[%clk 0:00:16]} 44. gxf6 {[%clk 0:00:43]}  Kxf6 {[%clk 0:00:17]} 45. Kxb7 {[%clk 0:00:43]}  a5 {[%clk 0:00:15]} 46. Kc6 {[%clk 0:00:22]}  g5 {[%clk 0:00:15]} 47. Kd5 {[%clk 0:00:19]}  g4 {[%clk 0:00:11]} 48. Ke4 {[%clk 0:00:18]}  Kg5 {[%clk 0:00:12]} 49. Kd3 {[%clk 0:00:17]}  Kxh6 {[%clk 0:00:08]} 50. b4 {[%clk 0:00:16]}  g3 {[%clk 0:00:08]} 51. Ke2 {[%clk 0:00:15]}  axb4 {[%clk 0:00:07]} 52. a5 {[%clk 0:00:15]}  b3 {[%clk 0:00:08]} 53. a6 {[%clk 0:00:15]}  g2 {[%clk 0:00:08]} 54. a7 {[%clk 0:00:14]}  g1=Q {[%clk 0:00:07]} 55. a8=Q {[%clk 0:00:15]}  Qh2+ {[%clk 0:00:07]} 56. Kd3 {[%clk 0:00:15]}  Qc2+ {[%clk 0:00:07]} 57. Kd4 {[%clk 0:00:15]}  b2 {[%clk 0:00:08]} 58. Qh1+ {[%clk 0:00:14]}  Kg7 {[%clk 0:00:07]} 59. Qg1+ {[%clk 0:00:13]}  Kh8 {[%clk 0:00:07]} 60. Qf1 {[%clk 0:00:09]}  Kg8 {[%clk 0:00:04]} 61. Qg1+ {[%clk 0:00:09]}  Kf8 {[%clk 0:00:04]} 62. Qf1+ {[%clk 0:00:09]}  Ke7 {[%clk 0:00:04]} 63. Qh1 {[%clk 0:00:07]}  b1=Q {[%clk 0:00:04]} 64. Qh4+ {[%clk 0:00:08]}  Kd7 {[%clk 0:00:04]} 65. Qg4+ {[%clk 0:00:06]}  Qf5 {[%clk 0:00:04]} 66. Qg7+ {[%clk 0:00:06]}  Kc6 {[%clk 0:00:04]} 67. Qh6+ {[%clk 0:00:05]}  Qg6 {[%clk 0:00:04]} 68. Qf4 {[%clk 0:00:05]}  Qb4+ {[%clk 0:00:03]} 69. Ke5 {[%clk 0:00:05]}  Qbd6# {[%clk 0:00:04]} 0-1


[Site "https://www.chess.com"]

[Event "Titled Tuesday Blitz March 08 Late 2022"]
[White "Mikhalsky, Vladimir"]
[Black "Shuvalova, Polina"]
[WhiteFideId "14144352"]
[BlackFideId "24171760"]
[WhiteElo "2301"]
[BlackElo "2355"]
[Result "0-1"]
[Round "07"]
[TimeControl "180+1"]
[Date "2022.03.09"]
[WhiteClock "0:00:01"]
[BlackClock "0:01:09"]

1. c4 {[%clk 0:02:56]}  e6 {[%clk 0:02:58]} 2. g3 {[%clk 0:02:53]}  d5 {[%clk 0:02:59]} 3. Bg2 {[%clk 0:02:53]}  Nf6 {[%clk 0:02:58]} 4. Nf3 {[%clk 0:02:53]}  Be7 {[%clk 0:02:58]} 5. O-O {[%clk 0:02:52]}  O-O {[%clk 0:02:58]} 6. b3 {[%clk 0:02:53]}  b6 {[%clk 0:02:58]} 7. Bb2 {[%clk 0:02:51]}  Bb7 {[%clk 0:02:58]} 8. d3 {[%clk 0:02:51]}  c5 {[%clk 0:02:58]} 9. Ne5 {[%clk 0:02:40]}  Nc6 {[%clk 0:02:57]} 10. Nd2 {[%clk 0:02:35]}  Qc7 {[%clk 0:02:55]} 11. Nxc6 {[%clk 0:02:31]}  Bxc6 {[%clk 0:02:56]} 12. e3 {[%clk 0:02:24]}  Qb7 {[%clk 0:02:54]} 13. d4 {[%clk 0:02:17]}  Rfd8 {[%clk 0:02:50]} 14. cxd5 {[%clk 0:02:16]}  Bxd5 {[%clk 0:02:50]} 15. Bxd5 {[%clk 0:02:15]}  Rxd5 {[%clk 0:02:50]} 16. Qf3 {[%clk 0:02:08]}  Rad8 {[%clk 0:02:35]} 17. Nc4 {[%clk 0:02:03]}  cxd4 {[%clk 0:02:31]} 18. Bxd4 {[%clk 0:02:02]}  b5 {[%clk 0:02:27]} 19. Na5 {[%clk 0:01:57]}  Qc7 {[%clk 0:02:16]} 20. b4 {[%clk 0:01:50]}  Bxb4 {[%clk 0:02:16]} 21. Nb3 {[%clk 0:01:47]}  e5 {[%clk 0:02:14]} 22. Bb2 {[%clk 0:01:42]}  a6 {[%clk 0:02:11]} 23. Rac1 {[%clk 0:01:42]}  Qd7 {[%clk 0:02:11]} 24. a3 {[%clk 0:01:32]}  Be7 {[%clk 0:02:10]} 25. Na5 {[%clk 0:01:29]}  Rc8 {[%clk 0:02:00]} 26. e4 {[%clk 0:01:20]}  Rxc1 {[%clk 0:01:54]} 27. Rxc1 {[%clk 0:01:18]}  Rd3 {[%clk 0:01:54]} 28. Qf5 {[%clk 0:01:06]}  Qxf5 {[%clk 0:01:46]} 29. exf5 {[%clk 0:01:06]}  h6 {[%clk 0:01:45]} 30. Bxe5 {[%clk 0:00:41]}  Bxa3 {[%clk 0:01:43]} 31. Rc8+ {[%clk 0:00:40]}  Kh7 {[%clk 0:01:43]} 32. Rc6 {[%clk 0:00:37]}  Ng4 {[%clk 0:01:39]} 33. Bf4 {[%clk 0:00:29]}  Bb4 {[%clk 0:01:35]} 34. Rxa6 {[%clk 0:00:21]}  Ra3 {[%clk 0:01:31]} 35. Bc7 {[%clk 0:00:21]}  Ra1+ {[%clk 0:01:24]} 36. Kg2 {[%clk 0:00:20]}  Ra2 {[%clk 0:01:25]} 37. Bb6 {[%clk 0:00:17]}  Ne5 {[%clk 0:01:11]} 38. Kh3 {[%clk 0:00:15]}  Nc4 {[%clk 0:01:10]} 39. Nxc4 {[%clk 0:00:01]}  Rxa6 {[%clk 0:01:09]} 0-1


[Site "https://www.chess.com"]

[Event "Titled Tuesday Blitz March 08 Late 2022"]
[White "Moksh Amit Doshi"]
[Black "Ronka, Erik"]
[WhiteFideId "25064967"]
[BlackFideId "505080"]
[WhiteElo "2245"]
[BlackElo "2264"]
[Result "1-0"]
[Round "07"]
[TimeControl "180+1"]
[Date "2022.03.08"]
[WhiteClock "0:00:27"]
[BlackClock "0:00:01"]

1. e4 {[%clk 0:02:50]}  Nf6 {[%clk 0:02:58]} 2. e5 {[%clk 0:02:50]}  Nd5 {[%clk 0:02:58]} 3. d4 {[%clk 0:02:51]}  d6 {[%clk 0:02:58]} 4. Nf3 {[%clk 0:02:52]}  dxe5 {[%clk 0:02:57]} 5. Nxe5 {[%clk 0:02:53]}  c6 {[%clk 0:02:57]} 6. Be2 {[%clk 0:02:53]}  Nd7 {[%clk 0:02:56]} 7. Nf3 {[%clk 0:02:52]}  e6 {[%clk 0:02:52]} 8. O-O {[%clk 0:02:51]}  Be7 {[%clk 0:02:51]} 9. c4 {[%clk 0:02:50]}  N5f6 {[%clk 0:02:51]} 10. Nc3 {[%clk 0:02:51]}  O-O {[%clk 0:02:51]} 11. Bf4 {[%clk 0:02:49]}  b6 {[%clk 0:02:47]} 12. Qc2 {[%clk 0:02:43]}  Bb7 {[%clk 0:02:46]} 13. Rad1 {[%clk 0:02:43]}  Re8 {[%clk 0:02:37]} 14. h3 {[%clk 0:02:41]}  c5 {[%clk 0:02:13]} 15. dxc5 {[%clk 0:02:20]}  Bxc5 {[%clk 0:02:14]} 16. Ne5 {[%clk 0:02:20]}  Qc8 {[%clk 0:02:03]} 17. Nb5 {[%clk 0:02:13]}  Nxe5 {[%clk 0:01:54]} 18. Bxe5 {[%clk 0:02:12]}  Nd7 {[%clk 0:01:43]} 19. Bg3 {[%clk 0:02:06]}  e5 {[%clk 0:01:42]} 20. Bg4 {[%clk 0:01:55]}  Qc6 {[%clk 0:01:31]} 21. Bf3 {[%clk 0:01:55]}  e4 {[%clk 0:01:32]} 22. Bg4 {[%clk 0:01:46]}  Ne5 {[%clk 0:01:27]} 23. Bxe5 {[%clk 0:01:45]}  Rxe5 {[%clk 0:01:28]} 24. Nd4 {[%clk 0:01:33]}  Qg6 {[%clk 0:01:18]} 25. Nb3 {[%clk 0:01:26]}  h5 {[%clk 0:01:11]} 26. Nxc5 {[%clk 0:01:26]}  Rxc5 {[%clk 0:00:25]} 27. Bd7 {[%clk 0:00:43]}  Rg5 {[%clk 0:00:24]} 28. g3 {[%clk 0:00:43]}  Qf6 {[%clk 0:00:16]} 29. h4 {[%clk 0:00:41]}  Re5 {[%clk 0:00:14]} 30. Qc3 {[%clk 0:00:38]}  Rd8 {[%clk 0:00:10]} 31. Bh3 {[%clk 0:00:37]}  Rxd1 {[%clk 0:00:10]} 32. Rxd1 {[%clk 0:00:38]}  g6 {[%clk 0:00:10]} 33. Qe3 {[%clk 0:00:37]}  Qe7 {[%clk 0:00:09]} 34. b3 {[%clk 0:00:36]}  Kg7 {[%clk 0:00:09]} 35. Rd7 {[%clk 0:00:35]}  Qf6 {[%clk 0:00:09]} 36. Rxb7 {[%clk 0:00:35]}  Ra5 {[%clk 0:00:05]} 37. Qxe4 {[%clk 0:00:28]}  Rxa2 {[%clk 0:00:04]} 38. Qf4 {[%clk 0:00:29]}  Ra1+ {[%clk 0:00:03]} 39. Kh2 {[%clk 0:00:27]}  Qc6 {[%clk 0:00:01]} 40. Qxf7+ {[%clk 0:00:27]}  Kh6 {[%clk 0:00:01]} 41. Qh7# {[%clk 0:00:27]} 1-0


[Site "https://www.chess.com"]

[Event "Titled Tuesday Blitz March 08 Late 2022"]
[White "Nayem, Haque"]
[Black "Mangialardo, Tiago Carvalho"]
[WhiteFideId "10217754"]
[BlackFideId "2130718"]
[WhiteElo "1982"]
[BlackElo "2088"]
[Result "1-0"]
[Round "07"]
[TimeControl "180+1"]
[Date "2022.03.09"]
[WhiteClock "0:00:08"]
[BlackClock "0:00:02"]

1. e4 {[%clk 0:03:00]}  e5 {[%clk 0:02:59]} 2. Nf3 {[%clk 0:03:00]}  Nc6 {[%clk 0:02:59]} 3. d4 {[%clk 0:03:00]}  exd4 {[%clk 0:02:59]} 4. Nxd4 {[%clk 0:03:00]}  Bc5 {[%clk 0:02:59]} 5. Nb3 {[%clk 0:02:59]}  Bb6 {[%clk 0:02:58]} 6. Nc3 {[%clk 0:02:59]}  Qf6 {[%clk 0:02:46]} 7. Qe2 {[%clk 0:02:56]}  Nge7 {[%clk 0:02:38]} 8. Nd5 {[%clk 0:02:54]}  Nxd5 {[%clk 0:02:38]} 9. exd5+ {[%clk 0:02:53]}  Ne7 {[%clk 0:02:36]} 10. c4 {[%clk 0:02:26]}  d6 {[%clk 0:02:32]} 11. Be3 {[%clk 0:01:22]}  O-O {[%clk 0:02:04]} 12. O-O-O {[%clk 0:01:20]}  Bf5 {[%clk 0:01:57]} 13. g4 {[%clk 0:01:18]}  Be4 {[%clk 0:01:49]} 14. Bxb6 {[%clk 0:01:05]}  Bxh1 {[%clk 0:01:35]} 15. Bd4 {[%clk 0:01:04]}  Qg5+ {[%clk 0:01:26]} 16. Kb1 {[%clk 0:00:57]}  Ng6 {[%clk 0:01:18]} 17. Be3 {[%clk 0:00:48]}  Qf6 {[%clk 0:01:14]} 18. f4 {[%clk 0:00:44]}  Nxf4 {[%clk 0:01:06]} 19. Qf2 {[%clk 0:00:40]}  Be4+ {[%clk 0:00:57]} 20. Ka1 {[%clk 0:00:38]}  Ng6 {[%clk 0:00:56]} 21. Qd2 {[%clk 0:00:36]}  Rfe8 {[%clk 0:00:54]} 22. Nd4 {[%clk 0:00:34]}  Bf3 {[%clk 0:00:52]} 23. Rc1 {[%clk 0:00:30]}  Bxg4 {[%clk 0:00:51]} 24. Nb5 {[%clk 0:00:26]}  Qe7 {[%clk 0:00:40]} 25. Bd4 {[%clk 0:00:25]}  a6 {[%clk 0:00:38]} 26. Nc3 {[%clk 0:00:24]}  Qd7 {[%clk 0:00:26]} 27. b3 {[%clk 0:00:23]}  Qf5 {[%clk 0:00:25]} 28. Bd3 {[%clk 0:00:21]}  Qf3 {[%clk 0:00:22]} 29. Bb1 {[%clk 0:00:17]}  Ne5 {[%clk 0:00:18]} 30. Rg1 {[%clk 0:00:16]}  Bf5 {[%clk 0:00:17]} 31. Qg5 {[%clk 0:00:12]}  Bg6 {[%clk 0:00:14]} 32. h4 {[%clk 0:00:12]}  h6 {[%clk 0:00:04]} 33. Qd2 {[%clk 0:00:12]}  h5 {[%clk 0:00:03]} 34. Bxg6 {[%clk 0:00:11]}  Nxg6 {[%clk 0:00:04]} 35. Kb2 {[%clk 0:00:11]}  Qh3 {[%clk 0:00:02]} 36. Qg5 {[%clk 0:00:09]}  Qxh4 {[%clk 0:00:03]} 37. Qxh4 {[%clk 0:00:08]}  Nxh4 {[%clk 0:00:03]} 38. Rxg7+ {[%clk 0:00:08]}  Kf8 {[%clk 0:00:04]} 39. Rh7 {[%clk 0:00:08]}  Nf3 {[%clk 0:00:03]} 40. Bf6 {[%clk 0:00:08]}  Re2+ {[%clk 0:00:01]} 41. Nxe2 {[%clk 0:00:07]}  Ke8 {[%clk 0:00:01]} 42. Rh8+ {[%clk 0:00:08]}  Kd7 {[%clk 0:00:02]} 43. Rxa8 {[%clk 0:00:08]}  Ne5 {[%clk 0:00:02]} 44. Rd8# {[%clk 0:00:08]} 1-0


[Site "https://www.chess.com"]